bitfinex-derivatives/quotes_BTCF0:USTF0_20250905
["timestamp","ask_amount","ask_price","bid_price","bid_amount"]
[1757084856570,0.05504,110740.0,110730.0,0.85564028]
[1757084856775,0.05504,110740.0,110730.0,0.49484028]
[1757084857681,0.41584,110740.0,110730.0,0.03173]
[1757084857885,0.05504,110730.0,110720.0,1.16065]
[1757084858078,0.05504,110730.0,110720.0,0.80985]
[1757084858279,0.05504,110730.0,110720.0,1.27296028]
[1757084858482,0.05504,110730.0,110720.0,0.50484028]
[1757084859081,0.05504,110730.0,110720.0,0.04173]
[1757084859484,0.05504,110730.0,110720.0,0.50484028]
[1757084859677,0.05504,110730.0,110720.0,0.86564028]
[1757084859878,0.05504,110730.0,110720.0,0.50484028]
[1757084860078,0.05504,110730.0,110720.0,0.04173]
[1757084860276,0.001,110730.0,110720.0,0.50484028]
[1757084860483,0.001,110730.0,110720.0,1.6808744]
[1757084860672,0.05604,110730.0,110720.0,0.50484028]
[1757084860878,0.05604,110730.0,110720.0,0.01]
[1757084861586,0.05604,110730.0,110720.0,0.50484028]
[1757084861786,0.05614,110730.0,110720.0,0.50484028]
[1757084861986,0.05814,110730.0,110720.0,0.50484028]
[1757084862186,0.05814,110730.0,110720.0,0.04173]
[1757084862486,0.05814,110730.0,110720.0,0.50484028]
[1757084863278,0.05814,110730.0,110720.0,0.01]
[1757084863678,0.05814,110730.0,110720.0,0.04173]
[1757084863975,0.05814,110730.0,110720.0,0.01]
[1757084864286,0.66894,110730.0,110720.0,0.01]
[1757084864486,1.13205028,110730.0,110720.0,0.01]
[1757084864786,1.5853,110730.0,110720.0,0.01]
[1757084866186,0.05268,110720.0,110700.0,0.0001]
[1757084866377,0.05268,110690.0,110680.0,0.0001]
[1757084866687,0.01982,110680.0,110670.0,0.49492876]
[1757084866887,0.01982,110680.0,110670.0,0.67492876]
[1757084867086,0.05268,110680.0,110670.0,0.67492876]
[1757084867586,0.05268,110680.0,110670.0,0.30188256]
[1757084868890,0.41348,110680.0,110670.0,0.26932256]
[1757084869096,1.12659028,110680.0,110670.0,0.25068975]
[1757084869287,1.12659028,110680.0,110670.0,0.25168975]
[1757084869587,1.12659028,110680.0,110660.0,20.3423]
[1757084869791,1.75985028,110670.0,110660.0,20.3423]
[1757084869985,2.00985028,110670.0,110660.0,20.3423]
[1757084870492,2.00981028,110670.0,110660.0,20.3423]
[1757084872091,2.01081028,110670.0,110660.0,20.3423]
[1757084873293,2.01073028,110670.0,110660.0,20.3423]
[1757084873783,2.06486798,110670.0,110660.0,20.3423]
[1757084875095,1.6017577,110670.0,110660.0,20.3423]
[1757084875292,2.06486798,110670.0,110660.0,20.3423]
[1757084875495,3.81142798,110670.0,110660.0,20.3423]
[1757084875797,3.92300131,110670.0,110660.0,20.31633625]
[1757084876398,3.92300131,110670.0,110660.0,20.30467625]
[1757084876604,4.22300131,110670.0,110660.0,19.37885262]
[1757084878501,4.22300131,110670.0,110660.0,17.56541209]
[1757084878799,3.92288131,110670.0,110660.0,17.56541209]
[1757084878997,3.92288131,110670.0,110660.0,16.70980535]
[1757084878998,4.71679159,110670.0,110660.0,16.70980535]
[1757084879198,3.43780131,110670.0,110660.0,16.30346026]
[1757084879503,4.60364131,110670.0,110660.0,15.70868811]
[1757084879703,4.60764131,110670.0,110660.0,15.70868811]
[1757084879898,3.89453103,110670.0,110660.0,15.70868811]
[1757084880100,3.44180131,110670.0,110660.0,15.70868811]
[1757084880305,4.35760131,110670.0,110660.0,15.70868811]
[1757084880501,4.40534059,110670.0,110660.0,15.70868811]
[1757084880903,2.92643031,110670.0,110660.0,15.70868811]
[1757084881103,4.30534059,110670.0,110660.0,15.70868811]
[1757084881303,3.99534059,110670.0,110660.0,15.70868811]
[1757084881601,4.00134059,110670.0,110660.0,15.70968811]
[1757084882102,3.99934059,110670.0,110660.0,15.70968811]
[1757084882502,3.53623031,110670.0,110660.0,15.70968811]
[1757084882702,4.34334059,110670.0,110660.0,15.61510959]
[1757084882902,4.62834059,110670.0,110660.0,15.61510959]
[1757084883202,4.62834059,110670.0,110660.0,13.73301878]
[1757084883404,5.19145087,110670.0,110660.0,3.23750448]
[1757084883603,4.72834059,110670.0,110660.0,2.93670211]
[1757084883797,4.72834059,110670.0,110660.0,2.84342211]
[1757084883998,4.72834059,110670.0,110660.0,2.43048206]
[1757084884203,3.71254059,110670.0,110660.0,2.36275491]
[1757084884395,3.91511031,110670.0,110660.0,2.31751776]
[1757084884703,2.98943031,110670.0,110660.0,2.31751776]
[1757084885007,3.91513031,110670.0,110660.0,2.31751776]
[1757084885209,4.62824059,110670.0,110660.0,2.31751776]
[1757084885807,3.91513031,110670.0,110660.0,2.31751776]
[1757084886005,3.52513031,110670.0,110660.0,2.31751776]
[1757084887003,4.33824059,110670.0,110660.0,2.30665881]
[1757084887202,3.87513031,110670.0,110660.0,2.30665881]
[1757084887412,2.70953031,110670.0,110660.0,3.01976909]
[1757084887707,1.77845031,110670.0,110660.0,3.01976909]
[1757084888111,2.08845031,110670.0,110660.0,3.01976909]
[1757084888307,2.07845031,110670.0,110660.0,3.01976909]
[1757084888504,1.77845031,110670.0,110660.0,2.55665881]
[1757084888707,1.77645031,110670.0,110660.0,2.55665881]
[1757084889002,1.77645031,110670.0,110660.0,2.30665881]
[1757084889003,1.77145031,110670.0,110660.0,2.30665881]
[1757084889207,1.77345031,110670.0,110660.0,2.30665881]
[1757084889610,1.72571103,110670.0,110660.0,2.30665881]
[1757084890412,1.72671103,110670.0,110660.0,2.30765881]
[1757084890716,1.72571103,110670.0,110660.0,2.30765881]
[1757084890912,1.72971103,110670.0,110660.0,2.30765881]
[1757084891714,1.72871103,110670.0,110660.0,2.30765881]
[1757084892012,1.72871103,110670.0,110660.0,2.35095881]
[1757084892909,1.72471103,110670.0,110660.0,2.34995881]
[1757084893109,1.72771103,110670.0,110660.0,2.34995881]
[1757084894413,1.72471103,110670.0,110660.0,2.34995881]
[1757084894604,1.72771103,110670.0,110660.0,2.34995881]
[1757084895309,1.72671103,110670.0,110660.0,2.34995881]
[1757084895501,1.72671103,110670.0,110660.0,2.81306909]
[1757084896106,1.72771103,110670.0,110660.0,2.81306909]
[1757084896313,1.72571103,110670.0,110660.0,2.81306909]
[1757084896514,1.72871103,110670.0,110660.0,2.34995881]
[1757084896817,1.72871103,110670.0,110660.0,2.81306909]
[1757084897907,0.44243103,110670.0,110660.0,3.97774909]
[1757084898107,0.0602377,110670.0,110660.0,5.28125909]
[1757084898607,0.0302377,110670.0,110660.0,5.28125909]
[1757084898815,0.0302377,110670.0,110660.0,5.28117909]
[1757084899122,0.0272377,110670.0,110660.0,5.28117909]
[1757084899415,0.0272377,110670.0,110660.0,4.36657909]
[1757084899619,0.0272377,110670.0,110660.0,5.28113909]
[1757084899912,0.0272377,110670.0,110660.0,4.36657909]
[1757084900117,0.0272377,110670.0,110660.0,5.28109909]
[1757084900317,0.0242377,110670.0,110660.0,5.28109909]
[1757084900510,0.0242377,110670.0,110660.0,5.28209909]
[1757084900911,0.0242377,110670.0,110660.0,5.28309909]
[1757084901114,0.0867227,110670.0,110660.0,5.28209909]
[1757084901415,0.07771459,110680.0,110670.0,0.10298]
[1757084901619,0.07771459,110680.0,110670.0,1.84117028]
[1757084901820,0.07771459,110680.0,110670.0,2.99473028]
[1757084902117,0.07771459,110680.0,110670.0,1.46965028]
[1757084902314,0.09753459,110680.0,110670.0,1.36667028]
[1757084902519,0.09753459,110680.0,110670.0,2.28083028]
[1757084902711,0.07771459,110680.0,110670.0,2.64163028]
[1757084903116,0.07771459,110680.0,110670.0,2.68070028]
[1757084903618,0.07771459,110680.0,110670.0,2.93070028]
[1757084904018,0.07771459,110680.0,110670.0,3.39381056]
[1757084904520,0.07871459,110680.0,110670.0,3.39481056]
[1757084905018,0.07871459,110680.0,110670.0,2.48065056]
[1757084905213,0.07871459,110680.0,110670.0,2.46835]
[1757084905413,0.07771459,110680.0,110670.0,2.92838069]
[1757084906314,0.07771459,110680.0,110670.0,2.01446069]
[1757084906819,0.07197981,110720.0,110710.0,0.03907]
[1757084907021,0.27,110720.0,110710.0,1.83753069]
[1757084907217,0.27,110720.0,110710.0,2.6638679]
[1757084907525,0.06517,110730.0,110720.0,0.10298]
[1757084907818,0.18507,110730.0,110720.0,0.92381069]
[1757084908008,0.18507,110730.0,110720.0,1.7501479]
[1757084908414,0.18507,110730.0,110720.0,2.6636679]
[1757084910127,0.2724449,110730.0,110720.0,1.77322069]
[1757084910927,0.2774449,110730.0,110720.0,1.77422069]
[1757084911126,0.20572446,110730.0,110720.0,2.6005579]
[1757084911321,0.129,110730.0,110720.0,2.6005579]
[1757084911525,0.009,110730.0,110720.0,2.6005579]
[1757084911926,0.009,110730.0,110720.0,2.55173789]
[1757084912126,0.009,110730.0,110720.0,1.6872379]
[1757084912427,0.009,110730.0,110720.0,2.6002379]
[1757084913130,0.009,110730.0,110720.0,2.8502379]
[1757084913728,0.005,110730.0,110720.0,2.8502379]
[1757084913925,0.328,110730.0,110720.0,2.02390069]
[1757084914229,0.0001,110740.0,110730.0,0.10298]
[1757084914421,0.0001,110750.0,110740.0,0.10298]
[1757084914626,0.32,110750.0,110740.0,1.77254069]
[1757084914930,0.32,110750.0,110740.0,2.5988779]
[1757084915631,0.32,110750.0,110740.0,2.5987979]
[1757084915822,0.32,110750.0,110740.0,2.8487979]
[1757084916226,0.04809583,110760.0,110740.0,2.8487979]
[1757084916431,0.35809583,110760.0,110750.0,1.7501479]
[1757084916619,0.35799583,110760.0,110750.0,1.7501479]
[1757084916823,0.35799583,110760.0,110750.0,2.6624679]
[1757084917425,0.35799583,110760.0,110750.0,2.73582206]
[1757084918229,0.31,110760.0,110750.0,2.98574206]
[1757084918426,0.311,110760.0,110750.0,2.98574206]
[1757084918728,0.311,110760.0,110750.0,2.07350206]
[1757084919118,0.311,110760.0,110750.0,2.98550206]
[1757084919424,0.37707,110760.0,110750.0,2.6620679]
[1757084920127,0.312,110760.0,110750.0,2.6620679]
[1757084920430,0.3121,110760.0,110750.0,2.6620679]
[1757084920819,0.3121,110760.0,110750.0,1.7501479]
[1757084921022,0.3121,110760.0,110750.0,2.6618279]
[1757084921223,0.3121,110760.0,110750.0,1.7501479]
[1757084921634,0.3121,110760.0,110750.0,2.6617479]
[1757084922032,0.3121,110760.0,110750.0,1.82308319]
[1757084922427,0.3121,110760.0,110750.0,2.73460319]
[1757084922828,0.3121,110760.0,110750.0,2.73456319]
[1757084923030,0.3121,110760.0,110750.0,1.82308319]
[1757084923226,0.3121,110760.0,110750.0,2.73452319]
[1757084923425,0.3121,110760.0,110750.0,2.73444319]
[1757084923626,0.3121,110760.0,110750.0,2.73440319]
[1757084924024,0.3121,110760.0,110750.0,1.82308319]
[1757084924230,0.3121,110760.0,110750.0,2.73432319]
[1757084924923,0.3121,110760.0,110750.0,2.98432319]
[1757084925128,0.24904,110760.0,110750.0,2.99585958]
[1757084925531,0.0021,110760.0,110750.0,2.53582889]
[1757084925727,0.0021,110760.0,110750.0,2.08461958]
[1757084926124,0.0021,110760.0,110750.0,2.99561958]
[1757084927030,0.0011,110760.0,110750.0,2.99561958]
[1757084927230,0.0911,110760.0,110750.0,2.99561958]
[1757084927431,0.0911,110760.0,110750.0,2.08461958]
[1757084927637,0.0911,110760.0,110750.0,1.82308319]
[1757084927833,0.0911,110760.0,110750.0,2.73388319]
[1757084928040,0.0911,110760.0,110750.0,1.82308319]
[1757084928246,0.0911,110760.0,110750.0,2.73388319]
[1757084928941,0.0911,110760.0,110750.0,1.82308319]
[1757084929136,0.0911,110760.0,110750.0,2.73372319]
[1757084929341,0.15945,110760.0,110750.0,2.73368319]
[1757084929534,0.06945,110760.0,110750.0,2.73368319]
[1757084929735,0.66945,110760.0,110750.0,1.29011721]
[1757084930041,0.66945,110760.0,110750.0,2.20063721]
[1757084930345,0.66945,110760.0,110750.0,1.7501479]
[1757084930544,0.66945,110760.0,110750.0,2.6606679]
[1757084930843,0.68765,110760.0,110740.0,0.90330069]
[1757084931142,0.68775,110760.0,110740.0,1.81370069]
[1757084931838,0.41955,110760.0,110750.0,0.42411]
[1757084932040,0.41945,110760.0,110750.0,0.92521069]
[1757084932235,0.41945,110760.0,110750.0,0.56441069]
[1757084932435,0.68765,110760.0,110750.0,0.91028]
[1757084933334,0.68665,110760.0,110750.0,0.91028]
[1757084933543,0.66845,110760.0,110750.0,0.97359]
[1757084934042,0.66845,110760.0,110750.0,1.83549069]
[1757084934239,0.66945,110760.0,110750.0,1.83549069]
[1757084934835,0.68765,110760.0,110750.0,1.73111069]
[1757084935041,0.66945,110760.0,110750.0,1.77186069]
[1757084935445,0.68765,110760.0,110750.0,0.46003069]
[1757084935742,0.66945,110760.0,110750.0,0.92521069]
[1757084935936,0.66945,110760.0,110750.0,1.73075069]
[1757084936446,0.66945,110760.0,110750.0,1.73071069]
[1757084936843,0.68765,110760.0,110750.0,1.36991069]
[1757084937042,0.68765,110760.0,110740.0,0.90330069]
[1757084937345,0.08775,110760.0,110750.0,0.90976]
[1757084937539,0.08765,110760.0,110750.0,0.90976]
[1757084938442,0.06845,110760.0,110750.0,1.01414]
[1757084938639,0.06845,110760.0,110750.0,0.90976]
[1757084938844,0.08665,110760.0,110750.0,1.36979069]
[1757084939242,0.08665,110760.0,110740.0,0.90330069]
[1757084939447,0.13748547,110760.0,110750.0,0.90952]
[1757084939643,0.13748547,110760.0,110740.0,0.90330069]
[1757084939644,0.03986,110750.0,110740.0,0.4042]
[1757084939848,0.03996,110750.0,110740.0,1.31362]
[1757084940245,0.10831,110750.0,110740.0,1.31354]
[1757084940746,0.13831,110750.0,110740.0,1.31354]
[1757084940948,0.13831,110750.0,110740.0,1.31346]
[1757084941149,0.13831,110750.0,110740.0,0.4041]
[1757084941346,0.09845,110750.0,110740.0,1.37673]
[1757084941646,0.09845,110750.0,110740.0,1.37669]
[1757084941845,0.13831,110750.0,110740.0,0.4041]
[1757084942051,0.13831,110750.0,110740.0,1.31338]
[1757084942255,0.13831,110750.0,110740.0,0.95258]
[1757084942450,1.20914069,110750.0,110740.0,0.0443]
[1757084942649,1.09911,110750.0,110740.0,0.02323]
[1757084942944,0.10845,110750.0,110740.0,0.94844069]
[1757084943148,0.10845,110750.0,110740.0,1.31474721]
[1757084943349,0.12724,110750.0,110740.0,0.38403]
[1757084943750,0.12918547,110750.0,110740.0,0.94844069]
[1757084943949,0.12918547,110750.0,110740.0,1.7747779]
[1757084944149,0.13018547,110750.0,110740.0,1.31474721]
[1757084944446,0.13018547,110750.0,110740.0,0.12761]
[1757084944852,0.13018547,110750.0,110740.0,0.48841]
[1757084946550,0.39897547,110750.0,110740.0,0.02323]
[1757084946752,0.75877547,110750.0,110740.0,0.02323]
[1757084947953,0.75977547,110750.0,110740.0,0.02323]
[1757084948151,0.39897547,110750.0,110740.0,0.02323]
[1757084948449,0.39897547,110750.0,110740.0,0.38403]
[1757084949043,0.39897547,110750.0,110740.0,0.94844069]
[1757084949044,0.13018547,110750.0,110740.0,0.94844069]
[1757084949253,0.13018547,110750.0,110740.0,0.38403]
[1757084949447,0.14897547,110750.0,110740.0,0.02323]
[1757084950457,0.39797547,110750.0,110740.0,0.02323]
[1757084950653,0.12918547,110750.0,110740.0,0.12761]
[1757084951056,0.06083547,110750.0,110740.0,2.0247779]
[1757084951852,0.06083547,110750.0,110740.0,2.6830579]
[1757084952156,0.06083547,110750.0,110740.0,2.2943978]
[1757084952356,0.06083547,110750.0,110740.0,3.00442849]
[1757084953461,0.0001,110760.0,110750.0,0.10438]
[1757084953661,0.0001,110770.0,110760.0,0.10438]
[1757084953863,0.01165605,110780.0,110770.0,0.10438]
[1757084953864,0.06845,110780.0,110770.0,0.10438]
[1757084954161,0.06845,110780.0,110770.0,0.46518]
[1757084954162,0.42835,110780.0,110770.0,0.46518]
[1757084954363,0.42835,110780.0,110770.0,1.7515479]
[1757084954761,0.42835,110780.0,110770.0,1.29151721]
[1757084954961,0.42835,110780.0,110770.0,2.19947721]
[1757084955961,0.42835,110780.0,110770.0,2.6595079]
[1757084956267,0.42935,110780.0,110770.0,1.7515479]
[1757084956457,0.42935,110780.0,110770.0,2.6593479]
[1757084956766,0.4401633,110780.0,110770.0,2.6593479]
[1757084957762,0.111,110780.0,110770.0,2.6593479]
[1757084957963,0.001,110780.0,110770.0,2.6593479]
[1757084958359,0.001,110780.0,110770.0,1.7515479]
[1757084958664,0.001,110780.0,110770.0,2.6589479]
[1757084960662,0.001,110780.0,110770.0,1.83261069]
[1757084960863,0.001,110780.0,110770.0,2.6589479]
[1757084961070,0.04809583,110790.0,110780.0,0.10426]
[1757084961274,0.04799583,110790.0,110780.0,1.7514279]
[1757084961568,0.04799583,110790.0,110780.0,2.19843721]
[1757084961770,0.04799583,110790.0,110780.0,2.6584279]
[1757084961963,0.04799583,110790.0,110780.0,1.7514279]
[1757084962267,0.04799583,110790.0,110780.0,2.6583879]
[1757084962654,0.04799583,110790.0,110780.0,1.7514279]
[1757084962860,0.04799583,110790.0,110780.0,2.19827721]
[1757084963061,0.04899583,110790.0,110780.0,2.19827721]
[1757084963263,0.04899583,110790.0,110780.0,1.29139721]
[1757084963462,0.08766583,110790.0,110780.0,1.18713721]
[1757084963657,0.08766583,110790.0,110780.0,2.09393721]
[1757084963872,0.04899583,110790.0,110780.0,2.13170721]
[1757084964072,0.04899583,110790.0,110780.0,2.5917379]
[1757084964676,0.04999583,110790.0,110780.0,2.5917379]
[1757084965861,0.002,110790.0,110780.0,2.5917379]
[1757084966161,0.002,110790.0,110780.0,1.22490721]
[1757084966574,0.002,110790.0,110780.0,2.13134721]
[1757084967467,0.002,110790.0,110780.0,2.59368954]
[1757084967867,0.27428,110790.0,110780.0,0.9064]
[1757084968172,0.37272,110790.0,110780.0,0.9064]
[1757084968574,0.37272,110790.0,110780.0,0.97289]
[1757084968765,0.37272,110790.0,110780.0,0.9064]
[1757084968961,1.19586233,110790.0,110760.0,0.9284939]
[1757084969166,0.06844,110770.0,110760.0,2.66097111]
[1757084969367,0.06844,110770.0,110760.0,1.75473111]
[1757084969666,0.06854,110780.0,110770.0,0.10426]
[1757084969867,0.11664,110780.0,110760.0,1.75473111]
[1757084970074,0.11674,110780.0,110760.0,2.66177111]
[1757084970271,0.11674,110780.0,110760.0,2.19942878]
[1757084970473,0.11674,110780.0,110760.0,1.22920721]
[1757084970675,0.47754,110780.0,110760.0,1.77440721]
[1757084970973,0.47754,110780.0,110760.0,2.23674954]
[1757084971270,0.45934,110780.0,110770.0,0.56660233]
[1757084971466,0.47744,110780.0,110770.0,0.90592]
[1757084972175,0.45924,110780.0,110770.0,0.90592]
[1757084972470,0.45934,110780.0,110770.0,0.90592]
[1757084972675,0.45934,110780.0,110770.0,1.01018]
[1757084973368,0.09854,110780.0,110770.0,2.29885954]
[1757084973569,0.09854,110780.0,110770.0,2.19731721]
[1757084973772,0.09854,110780.0,110770.0,2.65965954]
[1757084974577,0.09854,110780.0,110770.0,2.19731721]
[1757084974782,0.09854,110780.0,110770.0,2.65965954]
[1757084974982,0.0301,110780.0,110770.0,2.65965954]
[1757084976478,0.0301,110780.0,110770.0,1.75373954]
[1757084976678,0.0301,110780.0,110770.0,2.29829954]
[1757084976881,0.0301,110780.0,110770.0,2.65909954]
[1757084977378,0.09854,110780.0,110770.0,0.10426]
[1757084977591,0.11674,110780.0,110770.0,0.90536]
[1757084977776,0.47754,110780.0,110770.0,0.90528]
[1757084978583,0.45934,110780.0,110770.0,1.00954]
[1757084978887,0.45934,110780.0,110770.0,1.47188233]
[1757084979177,0.09854,110780.0,110770.0,1.47188233]
[1757084980182,0.45934,110780.0,110770.0,0.56660233]
[1757084980877,0.45934,110780.0,110770.0,0.10426]
[1757084981175,0.45934,110780.0,110770.0,0.56660233]
[1757084982378,0.42934,110780.0,110770.0,1.47160233]
[1757084983480,0.42934,110780.0,110770.0,1.00926]
[1757084983681,0.42934,110780.0,110770.0,1.47160233]
[1757084983884,0.06854,110780.0,110770.0,1.47160233]
[1757084984282,0.42934,110780.0,110770.0,1.47132233]
[1757084984582,0.06854,110780.0,110770.0,2.29761954]
[1757084984977,0.06854,110780.0,110770.0,1.83527721]
[1757084985183,0.06854,110780.0,110770.0,2.29761954]
[1757084985486,0.06854,110780.0,110770.0,1.39293954]
[1757084985885,0.06854,110780.0,110770.0,0.93059721]
[1757084986186,0.06854,110780.0,110770.0,1.39293954]
[1757084986378,0.45162,110780.0,110770.0,0.90452]
[1757084986583,0.45162,110780.0,110760.0,1.76879233]
[1757084986783,0.45172,110780.0,110760.0,2.59512954]
[1757084987185,0.45172,110780.0,110760.0,2.13278721]
[1757084987383,0.45172,110780.0,110760.0,1.32984954]
[1757084987572,0.45172,110780.0,110760.0,2.23532954]
[1757084988184,0.45172,110780.0,110760.0,2.23620954]
[1757084988786,0.42944,110780.0,110770.0,0.56487233]
[1757084988985,0.42934,110780.0,110770.0,0.56487233]
[1757084989379,0.42934,110780.0,110770.0,1.39120954]
[1757084989584,0.06854,110780.0,110770.0,1.39120954]
[1757084989884,0.0001,110780.0,110770.0,1.64120954]
[1757084990280,0.0001,110780.0,110770.0,2.00200954]
[1757084991483,0.0001,110780.0,110770.0,2.90620954]
[1757084992291,0.0001,110780.0,110770.0,2.90720954]
[1757084992487,0.0001,110780.0,110770.0,2.91020954]
[1757084992788,0.0001,110780.0,110770.0,2.91008954]
[1757084993182,0.0001,110780.0,110770.0,2.65996954]
[1757084993589,0.0001,110780.0,110770.0,1.75600954]
[1757084993887,0.31451,110780.0,110770.0,1.83674721]
[1757084994388,0.31451,110780.0,110770.0,2.29908954]
[1757084994584,0.31451,110780.0,110770.0,2.29904954]
[1757084994990,0.2501,110780.0,110770.0,1.83470721]
[1757084995192,0.0001,110780.0,110770.0,2.29604954]
[1757084995386,0.0001,110780.0,110770.0,2.29704954]
[1757084995583,0.0001,110780.0,110770.0,1.83470721]
[1757084995790,0.0001,110780.0,110770.0,2.29704954]
[1757084996992,0.0001,110780.0,110770.0,1.83470721]
[1757084997291,0.0001,110780.0,110770.0,2.29704954]
[1757084997483,0.0001,110780.0,110770.0,2.54704954]
[1757084999195,0.0001,110780.0,110770.0,2.08470721]
[1757084999394,0.0001,110780.0,110770.0,2.54704954]
[1757084999696,0.0001,110780.0,110770.0,2.29704954]
[1757085000193,0.06451,110780.0,110770.0,0.93086721]
[1757085000500,1.15993233,110780.0,110770.0,0.002]
[1757085000790,0.72759,110780.0,110770.0,0.002]
[1757085000994,1.18993233,110780.0,110770.0,0.002]
[1757085001582,1.51993233,110780.0,110770.0,0.002]
[1757085001790,0.08598,110770.0,110760.0,0.0001]
[1757085001983,0.10308,110760.0,110750.0,0.06428157]
[1757085002187,0.96632233,110760.0,110750.0,0.06418157]
[1757085003598,0.96632233,110760.0,110750.0,0.06518157]
[1757085003796,0.46531,110760.0,110750.0,2.28272832]
[1757085003998,0.46531,110760.0,110750.0,2.60943111]
[1757085003999,0.4009,110760.0,110750.0,2.60943111]
[1757085004386,0.46531,110760.0,110750.0,0.99404878]
[1757085004590,0.46531,110760.0,110750.0,0.12866157]
[1757085005187,2.08061233,110760.0,110750.0,0.12866157]
[1757085005396,0.09729,110720.0,110710.0,0.39985]
[1757085005594,0.45809,110720.0,110710.0,0.10253]
[1757085005789,0.45521,110720.0,110710.0,0.92886721]
[1757085006298,0.45521,110720.0,110710.0,1.39120954]
[1757085006501,0.45521,110720.0,110710.0,0.92886721]
[1757085006800,0.46633201,110720.0,110710.0,0.93086721]
[1757085007299,0.46633201,110720.0,110710.0,0.005]
[1757085007300,2.08439434,110720.0,110710.0,0.005]
[1757085007497,1.55155434,110720.0,110710.0,0.005]
[1757085007896,2.45439434,110720.0,110710.0,0.005]
[1757085008102,0.03353,110710.0,110680.0,0.20128166]
[1757085008302,0.06441,110690.0,110680.0,1.09109887]
[1757085009398,0.06441,110690.0,110680.0,1.09209887]
[1757085010304,0.06441,110690.0,110680.0,1.34209887]
[1757085010599,0.3609,110710.0,110700.0,0.03905]
[1757085010804,0.46521,110710.0,110700.0,0.10253]
[1757085011806,0.53801869,110710.0,110700.0,0.10253]
[1757085012702,0.03353,110700.0,110680.0,0.56408166]
[1757085012903,0.45809,110690.0,110680.0,1.95660887]
[1757085013204,0.95043233,110690.0,110680.0,0.16423166]
[1757085013399,0.45521,110690.0,110680.0,1.09309887]
[1757085013596,0.48809,110690.0,110680.0,1.05404887]
[1757085013801,0.48809,110690.0,110680.0,0.16423166]
[1757085014000,0.95043233,110690.0,110680.0,0.16423166]
[1757085014305,0.73809,110690.0,110680.0,0.16323166]
[1757085014505,1.20043233,110690.0,110680.0,0.16323166]
[1757085014899,0.73809,110690.0,110680.0,0.16323166]
[1757085015105,1.20043233,110690.0,110680.0,0.16323166]
[1757085016005,1.53043233,110690.0,110680.0,0.16323166]
[1757085016403,1.55608389,110690.0,110680.0,0.001]
[1757085017011,1.55608389,110690.0,110660.0,2.30665881]
[1757085017210,0.84553233,110670.0,110660.0,2.30665881]
[1757085017409,0.87553233,110670.0,110660.0,2.30665881]
[1757085018204,0.41319,110670.0,110660.0,2.30665881]
[1757085018404,0.87553233,110670.0,110660.0,2.30865881]
[1757085018807,0.41319,110670.0,110660.0,2.30865881]
[1757085019011,0.87553233,110670.0,110660.0,2.30865881]
[1757085019410,0.41319,110670.0,110660.0,2.30865881]
[1757085019608,0.3908,110670.0,110660.0,2.34694881]
[1757085020009,0.3908,110670.0,110660.0,2.30865881]
[1757085020206,0.3908,110670.0,110660.0,2.34994881]
[1757085020402,0.85314233,110670.0,110660.0,2.31165881]
[1757085021015,1.31861156,110670.0,110660.0,3.17628602]
[1757085021713,2.14175389,110670.0,110660.0,2.31165881]
[1757085021910,2.36175389,110670.0,110660.0,2.31165881]
[1757085022114,2.67175389,110670.0,110660.0,2.29476142]
[1757085022413,2.67175389,110670.0,110660.0,2.14840794]
[1757085022617,2.67175389,110670.0,110660.0,2.14020794]
[1757085022822,2.67159389,110670.0,110660.0,2.14020794]
[1757085023225,1.86959389,110670.0,110660.0,2.14020794]
[1757085023426,2.77163389,110670.0,110660.0,2.14020794]
[1757085024013,2.77163389,110670.0,110660.0,2.10996794]
[1757085024219,2.77173389,110670.0,110660.0,2.10996794]
[1757085024526,2.77173389,110670.0,110660.0,1.87416908]
[1757085025027,2.77173389,110670.0,110660.0,1.68094908]
[1757085025326,2.77173389,110670.0,110660.0,1.64994908]
[1757085025728,2.30939156,110670.0,110660.0,1.64994908]
[1757085025927,2.77173389,110670.0,110660.0,1.64994908]
[1757085026123,2.77173389,110670.0,110660.0,1.56905908]
[1757085026314,2.77173389,110670.0,110660.0,0.39822814]
[1757085026514,4.52873389,110670.0,110660.0,0.21796358]
[1757085026822,4.52873389,110670.0,110660.0,0.13137408]
[1757085027027,4.64349903,110670.0,110660.0,0.08613297]
[1757085027319,4.64549903,110670.0,110650.0,0.0001]
[1757085027530,0.1,110650.0,110620.0,0.0001]
[1757085027730,0.3608,110630.0,110620.0,0.03829]
[1757085027925,0.7408,110630.0,110620.0,0.03829]
[1757085028228,0.7408,110630.0,110610.0,0.03829]
[1757085028424,1.2626,110620.0,110610.0,1.32696954]
[1757085028619,1.72494233,110620.0,110600.0,0.03829]
[1757085028828,0.82314233,110610.0,110580.0,0.03829]
[1757085029021,0.39187,110590.0,110580.0,0.84025573]
[1757085029221,0.75187,110590.0,110580.0,0.84025573]
[1757085029424,1.11267,110590.0,110580.0,0.84025573]
[1757085029630,1.11267,110590.0,110580.0,0.82633721]
[1757085029826,1.12306979,110590.0,110560.0,0.03829]
[1757085030030,0.42205,110570.0,110560.0,0.86462721]
[1757085030226,0.45205,110570.0,110560.0,0.86462721]
[1757085030530,0.45205,110570.0,110560.0,0.93028721]
[1757085031320,0.45205,110570.0,110560.0,1.39140301]
[1757085031722,0.45205,110570.0,110560.0,0.93228721]
[1757085031925,0.45205,110570.0,110560.0,1.39340301]
[1757085032123,0.45205,110570.0,110560.0,0.93228721]
[1757085034130,0.45205,110570.0,110560.0,1.39340301]
[1757085034131,0.03,110570.0,110560.0,1.39340301]
[1757085034331,0.03,110570.0,110560.0,2.90584301]
[1757085035431,0.37119979,110590.0,110580.0,0.03829]
[1757085035630,0.38119979,110590.0,110580.0,0.5650658]
[1757085035834,0.38119979,110590.0,110580.0,1.39140301]
[1757085036030,0.38119979,110590.0,110580.0,2.54300301]
[1757085036229,0.02039979,110590.0,110580.0,2.54300301]
[1757085036929,0.02039979,110590.0,110580.0,2.90380301]
[1757085037135,0.01,110590.0,110580.0,2.90480301]
[1757085037935,0.0106515,110600.0,110580.0,2.90480301]
[1757085038136,0.04,110600.0,110590.0,1.39140301]
[1757085038430,0.01085732,110600.0,110590.0,1.39140301]
[1757085038630,0.3608,110610.0,110590.0,2.00220301]
[1757085038631,0.40879583,110610.0,110590.0,2.00220301]
[1757085038836,0.04799583,110610.0,110600.0,2.58802301]
[1757085039139,0.04799583,110610.0,110600.0,2.83802301]